{"text_format":"1","workbook":"xlsx","n_sheets":2,"sheets":["4041-3","Sheet1"],"not_rendered":{"charts":0,"images":5,"macros":1,"external_links":0,"defined_names":18,"comments":1,"pivot_tables":0},"unopened":[],"bounds":{"document_bytes":16777216,"sheet_cells":100000,"rows_first":2000,"rows_last":500,"rows_between":2000,"halvings":0,"cell_chars":16384,"cell_head_chars":4096},"cells_cut":0,"cells_raw":0,"read":"whole","date_system":"1900"}

{"sheet":"4041-3","index":0,"n_rows":47,"n_cols":79,"rows_kept":47,"cut":false,"hidden":true,"merged":[[22,17,22,20],[5,0,10,1],[8,2,10,3],[22,0,23,3],[5,2,5,3],[6,2,7,3],[6,5,6,8],[11,0,11,3],[20,0,20,3],[21,4,21,6],[23,4,23,8],[20,36,21,36],[19,0,19,3],[5,5,5,14],[5,15,11,20],[7,5,7,14],[8,5,8,14],[9,5,9,14],[10,5,10,14],[11,5,11,14],[13,0,17,3],[13,16,17,16],[18,5,18,15],[18,17,18,20],[19,4,19,8],[20,4,20,8],[21,0,21,3],[0,17,2,20],[1,5,1,15],[3,12,3,14],[3,15,3,20],[4,12,4,14],[4,15,4,20],[24,1,24,2],[24,4,24,15],[25,1,25,2],[25,4,25,15],[30,0,30,3],[28,0,28,3],[26,1,26,2],[26,4,26,5],[26,6,26,9],[27,0,27,3],[27,4,27,15],[28,4,28,15],[30,4,30,15],[34,0,34,3],[35,0,35,3],[36,0,36,3],[32,0,32,3],[33,0,33,3],[36,4,36,20],[35,4,35,9],[35,10,35,11],[35,13,35,14],[37,0,37,3],[43,18,45,20],[45,0,45,14],[46,0,46,14],[38,0,38,3],[37,4,37,20],[38,4,38,20],[39,0,39,3],[41,15,42,17],[41,18,42,20]]}
["V.24.4",null,null,null,null,null,null,null,null,null,null,null,null,null,null,null,null,null,null,null,null,null,null,null,null,null,null,{"$f":"F6","v":0},null,null,null,null,null,null,null,null,null,null,null,null,null,null,null,null,null,null,null,null,null,null,null,null,null,null,null,null,null,null,null,null,null,null,null,null,null,null,null,null,null,null,null,null,null,null,null,null,null,null,{"$f":"F6&CHAR(13)&F7&CHAR(13) &F8&CHAR(13)&F9&CHAR(13) &F10&CHAR(13)&F11& CHAR(13)&F12&CHAR(13)&F19&CHAR(13)&R19&CHAR(13)&E20&CHAR(13)&E21&CHAR(13)&E22& CHAR(13)&E24&CHAR(13)&E25&CHAR(13)&E26&CHAR(13)&E27&CHAR(13)&G27&CHAR(13)&E28&CHAR(13)&E29&CHAR(13)&E31","v":"\r\r\r\r\r\r\r\r\r\r\r\r\r\r\r\r\r\r\r"}]
[null,null,null,null,null,"試　験　依　頼　書",null,null,null,null,null,null,null,null,null,null,null,null,null,null,null,null,null,null,null,null,null,0]
[null,null,null,null,null,null,null,null,null,null,null,null,null,null,null,null,null,null,null,null,null,null,null,null,null,null,null,0]
["一般社団法人　岡山県コンクリート技術センター　殿",null,null,null,null,null,null,null,null,null,null,null,"受付年月日",null,null,null,null,null,null,null,null,null,null,null,null,null,null,0]
[null,null,null,null,null,null,null,null,null,null,"太枠内依頼者記入欄",null,"受付番号",null,null,null,null,null,null,null,null,null,null,"依頼書の記入方法",null,null,null,0]
["顧客",null,"会社名",null,null,null,null,null,null,null,null,null,null,null,null,null,null,null,null,null,null,null,null,null,null,null,null,0]
[null,null,"住　所",null,"(〒",null,null,null,null,"）",null,null,null,null,null,null,null,null,null,null,null,null,null,"当試験依頼書はマクロを使用しています。有効にしてください。",null,null,null,0]
[null,null,null,null,null,null,null,null,null,null,null,null,null,null,null,null,null,null,null,null,null,null,null,"セル及び行列の追加削除及び移動は行わないでください",null,null,null,{"$f":"F19","v":0}]
[null,null,"担当者",null,"氏名:",null,null,null,null,null,null,null,null,null,null,null,null,null,null,null,null,null,null,"セル内改行は行わないようにお願いします。",null,null,null,{"$f":"R19","v":0}]
[null,null,null,null,"TEL:",null,null,null,null,null,null,null,null,null,null,null,null,null,null,null,null,null,null,"黄色着色部に記入をお願いします。",null,null,null,{"$f":"E20","v":"00:00:00"}]
[null,null,null,null,"FAX:",null,null,null,null,null,null,null,null,null,null,null,null,null,null,null,null,null,null,null,null,null,null,{"$f":"E21","v":"00:00:00"}]
["報告書宛名",null,null,null,null,null,null,null,null,null,null,null,null,null,null,null,null,null,null,null,null,null,null,null,null,null,null,{"$f":"E22","v":""}]
[null,null,null,null,"試験方法及び形状寸法を下記から選択し選択欄に記入してください。",null,null,null,null,null,null,null,null,null,null,null,null,null,null,null,null,null,null,"試験方法・形状","：","リストから選んでください",null,{"$f":"E24","v":0}]
["試験項目\n\n(試験方法)",null,null,null,1,"JIS A 1107:2022（切り取りコアの圧縮強度試験方法） ",null,null,null,null,null,null,null,null,null,null,"形状寸法",1,"φ100×200mm",null,null,null,null,null,null,"試験方法、形状寸法がリストにない場合は",null,{"$f":"E25","v":0}]
[null,null,null,null,2,"JIS A 1129:2010（コンクリートの長さ変化試験方法） ",null,null,null,null,null,null,null,null,null,null,null,2,"100×100×400mm",null,null,null,null,null,null,"セル”F18””S17”に記載後、選択から選んでください",null,{"$f":"E26","v":0}]
[null,null,null,null,3,"JIS A 1149:2022（コンクリートの静弾性係数試験方法）",null,null,null,null,null,null,null,null,null,null,null,3,"φ50×100mm",null,null,null,null,null,null,null,null,{"$f":"E27","v":0}]
[null,null,null,null,4,"JSCE-G505-2018（ﾓﾙﾀﾙ・ｾﾒﾝﾄﾍﾟｰｽﾄの圧縮強度試験方法）",null,null,null,null,null,null,null,null,null,null,null,4,null,null,null,null,null,null,null,null,null,{"$f":"G27","v":0}]
[null,null,null,null,5,null,null,null,null,null,null,null,null,null,null,null,null,null,null,null,null,null,null,null,null,null,null,{"$f":"E28","v":0}]
[null,null,null,null,"選択",null,null,null,null,null,null,null,null,null,null,null,"選択",null,null,null,null,null,null,null,null,null,null,{"$f":"E29","v":0}]
["採取年月日",null,null,null,null,null,null,null,null,null,null,null,null,null,null,null,null,null,null,null,null,null,null,"採 取 年 月 日","：","日付の書式設定をしていますので4月1日の場合は「4/1」と入力ください",null,{"$f":"E31","v":0}]
["試験希望日",null,null,null,null,null,null,null,null,null,"※下記参照（長さ変化試験の場合）",null,null,null,null,null,null,null,null,null,null,null,null,"試験希望日","：","同上。尚、当センター休日は避けてください。"]
["材　　齢",null,null,null,{"$f":"IF(E21=\"\",\"\",E21-E20)","v":""},null,null,"日",null,null,null,null,null,null,null,null,null,null,null,null,null,null,null,null,null,"長さ変化試験の場合は記入不要です"]
["養生方法",null,null,null,"養生方法を右記から選択し下記に記入してください。",null,null,null,null,null,null,null,null,null,null,null,1,"水中養生(20±2℃)",null,null,null,null,null,"養生方法","：","リストから選んでください。"]
[null,null,null,null,null,null,null,null,null,null,null,null,null,null,null,null,2,"標準養生"]
[null,"工事名",null,null,null,null,null,null,null,null,null,null,null,null,null,null,3,"現場水中養生"]
[null,"工種",null,null,null,null,null,null,null,null,null,null,null,null,null,null,4,"現場空中養生"]
[null,"呼び方",null,null,null,null,null,null,null,null,null,null,null,null,null,null,5,"現場封かん養生",null,null,null,null,null,"呼び方","：","JIS A 5308の製品の呼び方を参考に記入してください。"]
["実測スランプ又は\nスランプフロー(cm)",null,null,null,null,null,null,null,null,null,null,null,null,null,null,null,null,null,null,null,null,null,null,"スランプ","：","報告書に記載してほしい場合記入してください。"]
["実測空気量(%)",null,null,null,null,null,null,null,null,null,null,null,null,null,null,null,null,null,null,null,null,null,null,"空気量","：","報告書に記載してほしい場合記入してください。"]
["　依頼する供試体は、各規格の作製方法に従って当社が作製したものです。"]
["備　　　　　考",null,null,null,null,null,null,null,null,null,null,null,null,null,null,null,null,null,null,null,null,null,null,"備考","：","報告書に記載してほしい内容等を記入してください。"]
["試験所記入欄"]
["試験方法",null,null,null,null,null,null,null,"□","　合",null,null,"□","　否"]
["形状寸法・状態",null,null,null,"　　",null,null,null,"□","　良",null,null,"□","　否",null,null,null,null,null,null,null,null,null,"印刷を行うと、QRコード付の依頼書が印刷されます。"]
["保管(養生)",null,null,null,"　　",null,null,null,"□","　必要",null,null,"□","　不要",null,null,null,null,null,null,null,null,null,"QRコードが表示されない場合は、マクロを有効にしてください。"]
["試料持込日",null,null,null,{"$f":"TODAY()","v":"2024-03-30"},null,null,null,null,null,null,null,"月",null,null,"日",null,null,null,null,null,null,null,"印刷されて、供試体と共に持参されるか、"]
["試料の処分方法",null,null,null,"当所で処分"]
["識別番号",null,null,null," - 1～3",null,null,null,null,null,null,null,null,null,null,null,null,null,null,null,null,null,null,"このエクセルファイルをメールに添付して試験依頼をお願いします。"]
["報告書発行予定日",null,null,null,"試験終了後、5営業日以内に発行",null,null,null,null,null,null,null,null,null,null,null,null,null,null,null,null,null,null,"メールされると、センターでの待ち時間が少なくて済みますので"]
["試験時の立会",null,null,null,"　　",null,null,null,"□　","　有　",null,null,"□","　無",null,null,null,null,null,null,null,null,null,"メールでの依頼を推奨いたします。"]
[]
["※長さ変化試験の測定日が当センター休業日となる場合は、予告なく測定日を",null,null,null,null,null,null,null,null,null,null,null,null,null,null,"技術管理者",null,null,"受付者"]
["　変更しますのでご了承願います。"]
[]
["(機密保持)"]
["　当センターは、試験業務を実行する過程で知り得たお客様の業務上の情報を、他に漏らさないことをお約束いたします。\n但し、以下の場合には当センターの判断で第三者に開示することがございます。"]
["・当センターがISO/IEC17025等の審査を受ける際に認定機関に対し依頼書等を審査資料として開示する場合。\n・法令または官公署からの命令・要請等があった場合。"]

{"sheet":"Sheet1","index":1,"n_rows":41,"n_cols":22,"rows_kept":41,"cut":false,"hidden":false,"merged":[[13,4,14,5]]}
[]
[]
[]
[]
[null,"このファイルを開いたとき、上部の情報バーに黄色いメッセージがでた場合、以下の方法でセキュリティ許可をして、編集を有効にする必要があります"]
[]
[null,"次の手順をメモして、現在のエクセルファイルを一旦閉じてください。下記１～４を操作後、右下の青色ボタン「試験依頼書を開く」をクリックしてください。"]
[]
[null,"上記の表示が出ない場合は、そのまま右下の青色ボタン「試験依頼書を開く」をクリックしてください。尚、コンテンツ（マクロ）は有効にしてください。"]
[]
[null,"１．試験依頼書のアイコンを右クリックします",null,null,null,null,null,null,null,"３．プロパティの下のほうの「セキュリティ」の「許可する」に☑を入れます",null,null,null,null,null,null,null,null,null,null,null,"４．再度、このファイルを開いて、上部の情報バーにコンテンツを有効にする要求が出た場合は"]
[null,null,null,null,null,null,null,null,null,null,null,null,null,null,null,null,null,null,null,null,null,"コンテンツを有効にしてください、下の青色のボタン「試験依頼書を開く」をクリックしてください。"]
[null,null,null,null,null,null,null,null,null,null,null,null,null,null,null,null,null,null,null,null,null,"尚、要求が無い場合も、下の青色のボタン「試験依頼書を開く」をクリックしてください。"]
[null,null,null,null,"右クリック",null,null,null,null,null,null,null,null,null,null,null,null,null,null,null,null,"これで、試験依頼書が開き使用可能となります"]
[]
[]
[null,"２．プロパティをクリックします"]
[]
[]
[]
[]
[]
[]
[]
[]
[]
[]
[]
[]
[]
[]
[]
[]
[]
[]
[null,null,null,null,null,null,null,null,null,null,null,null,null,null,null,null,"☑を入れます"]
[]
[]
[]
[]
[null,null,null,null,null,null,null,null,null,null,null,null,null,null,null,null,"「適用」　「OK」をクリックして閉じます"]